bitfinex-derivatives/quotes_BNBF0:USTF0_20251010
["timestamp","ask_amount","ask_price","bid_price","bid_amount"]
[1760060369764,0.13872196,1256.1,1253.0,0.57609167]
[1760060369959,0.13872196,1256.1,1252.9,0.59521398]
[1760060369960,0.13872196,1256.1,1253.1,0.57609167]
[1760060370164,0.13872196,1256.1,1253.2,0.57609167]
[1760060370363,0.13872196,1256.1,1253.3,0.57609167]
[1760060370564,0.13872196,1256.1,1253.4,0.57609167]
[1760060370860,0.13872196,1256.1,1253.0,0.59521398]
[1760060371165,0.13872196,1256.1,1253.1,0.57608887]
[1760060371364,0.13872196,1256.1,1253.2,0.57608887]
[1760060371562,0.13872196,1256.1,1253.3,0.57608887]
[1760060371762,0.13872196,1256.1,1253.4,0.57608887]
[1760060371964,0.13872196,1256.1,1252.9,0.59521398]
[1760060372159,0.13872196,1256.1,1253.0,0.57609809]
[1760060372362,0.13872196,1256.1,1253.1,0.57609809]
[1760060372566,0.13872196,1256.1,1253.2,0.57609809]
[1760060372865,0.13872196,1256.1,1253.3,0.57609809]
[1760060373064,0.13872196,1256.1,1253.4,0.57609809]
[1760060373263,0.13872196,1256.1,1253.5,0.57609809]
[1760060373460,0.13872196,1256.1,1253.6,0.57609809]
[1760060373664,0.13872196,1256.1,1253.1,0.59521398]
[1760060373864,0.13872196,1256.1,1253.2,0.57597715]
[1760060374066,0.13872196,1256.1,1253.3,0.57597715]
[1760060374262,0.13872196,1256.1,1253.4,0.57597715]
[1760060374466,0.13872196,1256.1,1253.5,0.57597715]
[1760060374766,0.13872196,1256.1,1252.8,0.19584171]
[1760060375063,0.19617364,1253.1,1252.9,0.77171456]
[1760060375261,0.19617364,1253.2,1253.0,0.57587285]
[1760060375466,0.19617364,1253.2,1253.1,0.57587285]
[1760060376870,0.19617364,1253.3,1253.1,0.57587285]
[1760060377067,0.19617364,1253.3,1253.2,0.57587285]
[1760060377771,0.19617364,1253.4,1253.2,0.57587285]
[1760060377967,0.19617364,1253.4,1253.3,0.57587285]
[1760060379271,0.13872196,1256.1,1253.3,0.57587285]
[1760060379572,0.13872196,1256.1,1253.4,0.57587285]
[1760060379869,0.13872196,1256.1,1253.5,0.57587285]
[1760060380068,0.13872196,1256.1,1253.1,0.19584171]
[1760060380268,0.19592164,1253.3,1253.2,0.57487282]
[1760060383672,0.19592164,1253.4,1253.2,0.77071453]
[1760060383972,0.19592164,1253.4,1253.3,0.57487282]
[1760060385775,0.19592164,1253.5,1253.3,0.57487282]
[1760060386074,0.13872196,1256.1,1253.4,0.57487282]
[1760060386277,0.13872196,1256.1,1253.7,0.59236197]
[1760060386473,0.13872196,1256.1,1253.8,0.57487282]
[1760060386671,0.13872196,1256.1,1253.9,0.57487282]
[1760060386875,0.13872196,1256.1,1254.0,0.57487282]
[1760060387074,0.13872196,1256.1,1254.1,0.57487282]
[1760060387273,0.13872196,1256.1,1254.2,0.57487282]
[1760060387474,0.13872196,1256.1,1254.3,0.57487282]
[1760060387774,0.13872196,1256.1,1254.4,0.57487282]
[1760060387974,0.13872196,1256.1,1254.0,0.59236197]
[1760060388178,0.13872196,1256.1,1254.1,0.57356529]
[1760060388477,0.13872196,1256.1,1254.2,0.57356529]
[1760060388673,0.13872196,1256.1,1254.3,0.57356529]
[1760060388878,0.13872196,1256.1,1253.7,0.59236197]
[1760060389077,0.13872196,1256.1,1253.8,0.57333055]
[1760060389377,0.13872196,1256.1,1253.9,0.57333055]
[1760060389578,0.13872196,1256.1,1254.0,0.57333055]
[1760060389774,0.13872196,1256.1,1254.1,0.57333055]
[1760060389980,0.13872196,1256.1,1254.2,0.57333055]
[1760060390175,0.13872196,1256.1,1254.3,0.57333055]
[1760060390377,0.13872196,1256.1,1254.4,0.57333055]
[1760060390577,0.13872196,1256.1,1253.6,0.59236197]
[1760060390779,0.13872196,1256.1,1253.7,0.57301421]
[1760060390981,0.13872196,1256.1,1253.8,0.57301421]
[1760060391178,0.13872196,1256.1,1253.9,0.57301421]
[1760060391481,0.13872196,1256.1,1254.0,0.57301421]
[1760060391678,0.13872196,1256.1,1253.6,0.59236197]
[1760060391879,0.13872196,1256.1,1253.7,0.57297501]
[1760060392083,0.13872196,1256.1,1253.8,0.57297501]
[1760060392277,0.13872196,1256.1,1253.9,0.57297501]
[1760060392482,0.13872196,1256.1,1254.0,0.57297501]
[1760060392679,0.13872196,1256.1,1253.5,0.59236197]
[1760060392982,0.13872196,1256.1,1253.6,0.5729282]
[1760060393179,0.13872196,1256.1,1253.7,0.5729282]
[1760060393383,0.13872196,1256.1,1253.8,0.5729282]
[1760060393580,0.13872196,1256.1,1253.9,0.5729282]
[1760060393783,0.13872196,1256.1,1253.5,0.59236197]
[1760060393979,0.13872196,1256.1,1253.6,0.57292764]
[1760060394180,0.13872196,1256.1,1253.7,0.57292764]
[1760060394382,0.13872196,1256.1,1253.8,0.57292764]
[1760060394578,0.13872196,1256.1,1253.4,0.59236197]
[1760060394780,0.13872196,1256.1,1253.5,0.57295659]
[1760060394984,0.13872196,1256.1,1253.6,0.57295659]
[1760060395179,0.13872196,1256.1,1253.2,0.59236197]
[1760060395381,0.13872196,1256.1,1253.3,0.57307371]
[1760060395584,0.13872196,1256.1,1253.4,0.57307371]
[1760060395782,0.13872196,1256.1,1253.5,0.57307371]
[1760060396086,0.13872196,1256.1,1253.6,0.57307371]
[1760060396286,0.13872196,1256.1,1253.3,0.59236197]
[1760060396484,0.13872196,1256.1,1253.4,0.57296463]
[1760060396688,0.13872196,1256.1,1253.5,0.57296463]
[1760060396885,0.13872196,1256.1,1252.7,0.19584171]
[1760060396886,0.13872196,1256.1,1253.6,0.57296463]
[1760060397188,0.13872196,1256.1,1253.7,0.57296463]
[1760060397392,0.13872196,1256.1,1253.4,0.59236197]
[1760060397588,0.13872196,1256.1,1253.5,0.57294448]
[1760060397784,0.13872196,1256.1,1253.6,0.57294448]
[1760060397988,0.13872196,1256.1,1253.7,0.57294448]
[1760060398287,0.13872196,1256.1,1253.8,0.57295177]
[1760060398492,0.13872196,1256.1,1253.2,0.59236197]
[1760060398693,0.13872196,1256.1,1253.3,0.5729862]
[1760060398894,0.13872196,1256.1,1253.4,0.5729862]
[1760060399092,0.13872196,1256.1,1253.5,0.5729862]
[1760060399293,0.13872196,1256.1,1253.6,0.5729862]
[1760060399494,0.13872196,1256.1,1253.1,0.59236197]
[1760060399794,0.13872196,1256.1,1253.2,0.57301381]
[1760060399989,0.13872196,1256.1,1253.3,0.57301381]
[1760060400194,0.13872196,1256.1,1253.4,0.57301381]
[1760060400496,0.13872196,1256.1,1253.5,0.57301381]
[1760060400790,0.13872196,1256.1,1253.6,0.57301381]
[1760060400990,0.13872196,1256.1,1253.1,0.59236197]
[1760060401188,0.13872196,1256.1,1253.2,0.57301402]
[1760060401392,0.13872196,1256.1,1253.3,0.57301402]
[1760060401591,0.13872196,1256.1,1253.4,0.57301402]
[1760060401891,0.13872196,1256.1,1253.5,0.57301402]
[1760060402190,0.13872196,1256.1,1253.6,0.57301402]
[1760060402494,0.13872196,1256.1,1253.1,0.59236197]
[1760060402688,0.13872196,1256.1,1253.2,0.57308248]
[1760060402889,0.13872196,1256.1,1253.3,0.57308248]
[1760060403190,0.13872196,1256.1,1253.4,0.57308248]
[1760060403391,0.13872196,1256.1,1253.5,0.57308248]
[1760060403592,0.13872196,1256.1,1253.1,0.59236197]
[1760060403795,0.13872196,1256.1,1253.2,0.57311641]
[1760060403996,0.13872196,1256.1,1253.3,0.57311641]
[1760060404197,0.13872196,1256.1,1253.4,0.57311641]
[1760060404397,0.13872196,1256.1,1252.9,0.59236197]
[1760060404592,0.13872196,1256.1,1252.4,0.19584171]
[1760060404593,0.13872196,1256.1,1253.0,0.57320567]
[1760060404798,0.13872196,1256.1,1252.4,0.78820368]
[1760060405094,0.19496804,1252.6,1252.5,0.57319615]
[1760060413805,0.19496804,1252.6,1252.5,1.16555812]
[1760060414001,0.19496804,1252.6,1252.5,0.57319615]
[1760060414503,0.19496804,1252.6,1252.5,1.16555812]
[1760060414803,0.19513426,1252.6,1252.5,0.57319615]
[1760060415104,0.19514598,1252.6,1252.5,0.57319615]
[1760060415301,0.13872196,1256.1,1252.5,0.57319615]
[1760060415505,0.13872196,1256.1,1252.9,0.59229695]
[1760060415705,0.13872196,1256.1,1253.0,0.57319615]
[1760060415902,0.13872196,1256.1,1253.1,0.57319615]
[1760060416108,0.13872196,1256.1,1253.2,0.57319615]
[1760060416407,0.13872196,1256.1,1253.3,0.57319615]
[1760060416703,0.13872196,1256.1,1252.7,0.59229695]
[1760060416908,0.13872196,1256.1,1252.8,0.57431579]
[1760060417108,0.13872196,1256.1,1252.9,0.57431579]
[1760060417309,0.13872196,1256.1,1253.0,0.57431579]
[1760060417508,0.13872196,1256.1,1253.1,0.57431579]
[1760060417712,0.13872196,1256.1,1253.2,0.57431579]
[1760060418011,0.13872196,1256.1,1252.6,0.59229695]
[1760060418208,0.13872196,1256.1,1252.7,0.57455482]
[1760060418408,0.13872196,1256.1,1252.8,0.57455482]
[1760060418712,0.13872196,1256.1,1252.9,0.57455482]
[1760060419008,0.13872196,1256.1,1252.7,0.59229695]
[1760060419009,0.13872196,1256.1,1253.0,0.57455482]
[1760060419206,0.13872196,1256.1,1253.1,0.57455482]
[1760060419412,0.13872196,1256.1,1252.7,0.59229695]
[1760060419612,0.13872196,1256.1,1252.8,0.57473033]
[1760060419812,0.13872196,1256.1,1252.9,0.57473033]
[1760060420009,0.13872196,1256.1,1253.0,0.57473033]
[1760060420208,0.13872196,1256.1,1252.2,0.59229695]
[1760060420512,0.13872196,1256.1,1252.3,0.57474362]
[1760060420713,0.13872196,1256.1,1252.4,0.57474362]
[1760060420913,0.13872196,1256.1,1252.5,0.57474362]
[1760060421108,0.13872196,1256.1,1252.6,0.57474362]
[1760060421410,0.13872196,1256.1,1252.7,0.57474362]
[1760060421613,0.13872196,1256.1,1252.8,0.57474362]
[1760060421813,0.13872196,1256.1,1252.9,0.57474362]
[1760060422009,0.13872196,1256.1,1252.2,0.59229695]
[1760060422213,0.13872196,1256.1,1252.3,0.57457356]
[1760060422410,0.13872196,1256.1,1252.4,0.57457356]
[1760060422614,0.13872196,1256.1,1252.5,0.57457356]
[1760060422910,1.9701422,1256.0,1252.6,0.57457356]
[1760060423111,1.9701422,1256.0,1252.7,0.57457356]
[1760060423313,1.9701422,1256.0,1252.2,0.59229695]
[1760060423511,2.10886416,1256.1,1252.3,0.57458383]
[1760060423710,2.10886416,1256.1,1252.4,0.57458383]
[1760060423916,1.9701422,1256.0,1252.5,0.57458383]
[1760060424116,1.9701422,1256.0,1252.6,0.57458383]
[1760060424417,1.9701422,1256.0,1252.7,0.57458383]
[1760060424616,1.9701422,1256.0,1251.9,0.59229695]
[1760060424812,2.7581992,1255.7,1252.0,0.57448784]
[1760060425114,1.9701422,1255.3,1252.1,0.57448784]
[1760060425315,1.9701422,1255.3,1252.2,0.57448784]
[1760060425514,1.9701422,1255.3,1252.3,0.57448784]
[1760060425714,1.9701422,1255.3,1251.9,0.59229695]
[1760060425917,1.9701422,1255.3,1252.0,0.57434264]
[1760060426116,1.9701422,1255.2,1252.1,0.57434264]
[1760060426318,1.9701422,1255.2,1252.2,0.57434264]
[1760060426515,1.9701422,1255.2,1252.3,0.57434264]
[1760060426720,1.9701422,1255.2,1251.9,0.59229695]
[1760060426920,1.9701422,1255.2,1252.0,0.57411567]
[1760060427121,1.9701422,1255.2,1252.1,0.57411567]
[1760060427421,1.9701422,1255.2,1252.2,0.57411567]
[1760060427621,1.9701422,1255.3,1252.3,0.57411567]
[1760060427821,1.9701422,1255.3,1251.9,0.59229695]
[1760060428116,1.9701422,1255.3,1252.0,0.57389106]
[1760060428321,1.9701422,1255.3,1252.1,0.57389106]
[1760060428520,1.9701422,1255.3,1252.2,0.57389106]
[1760060428721,1.9701422,1255.3,1252.3,0.57389106]
[1760060429017,1.9701422,1255.3,1251.9,0.59229695]
[1760060429216,1.9701422,1255.3,1252.0,0.57353999]
[1760060429420,1.9701422,1255.3,1252.1,0.57353999]
[1760060429619,2.7581992,1255.7,1252.2,0.57353999]
[1760060429818,2.7581992,1255.7,1252.3,0.57353999]
[1760060430118,1.9701422,1255.9,1251.8,0.59229695]
[1760060430417,0.19494061,1251.9,1251.8,0.59229695]
[1760060430620,0.19494061,1251.9,1251.8,1.16558981]
[1760060431717,2.10886416,1256.1,1251.8,1.16558981]
[1760060431917,2.10886416,1256.1,1251.9,0.57329286]
[1760060432117,2.10886416,1256.1,1252.0,0.57329286]
[1760060432321,2.10886416,1256.1,1252.1,0.57329286]
[1760060432518,2.10886416,1256.1,1252.2,0.57329286]
[1760060432720,2.10886416,1256.1,1251.5,0.59229695]
[1760060432721,0.13872196,1256.1,1252.3,0.57329286]
[1760060432918,0.13872196,1256.1,1251.5,0.19584171]
[1760060433217,0.19475648,1251.7,1251.6,0.57293932]
[1760060433924,0.19475648,1251.8,1251.6,0.57293932]
[1760060434122,0.19475648,1251.8,1251.7,0.57293932]
[1760060434620,0.13872196,1256.1,1251.7,0.57293932]
[1760060434820,0.13872196,1256.1,1251.8,0.57293932]
[1760060435019,0.13872196,1256.1,1251.9,0.57293932]
[1760060435222,0.13872196,1256.1,1252.0,0.57293932]
[1760060435521,0.13872196,1256.1,1251.6,0.59229695]
[1760060435522,0.13872196,1256.1,1252.1,0.57293932]
[1760060435818,0.13872196,1256.1,1252.2,0.57293932]
[1760060436023,0.13872196,1256.1,1252.3,0.57293932]
[1760060436223,0.13872196,1256.1,1252.4,0.57293932]
[1760060436424,0.13872196,1256.1,1251.6,0.59229695]
[1760060436720,0.13872196,1256.1,1251.7,0.57222468]
[1760060436920,0.13872196,1256.1,1251.8,0.57222468]
[1760060437120,0.13872196,1256.1,1251.9,0.57222468]
[1760060437319,0.13872196,1256.1,1252.0,0.57222468]
[1760060437522,0.13872196,1256.1,1252.1,0.57222468]
[1760060437725,0.13872196,1256.1,1252.2,0.57222468]
[1760060437926,0.13872196,1256.1,1251.5,0.59229695]
[1760060438126,0.13872196,1256.1,1251.6,0.57212357]
[1760060438426,0.13872196,1256.1,1251.7,0.57212357]
[1760060438623,0.13872196,1256.1,1251.8,0.57212357]
[1760060438828,0.13872196,1256.1,1251.9,0.57212357]
[1760060439022,0.13872196,1256.1,1252.0,0.57212357]
[1760060439229,0.13872196,1256.1,1252.1,0.57212357]
[1760060439524,0.13872196,1256.1,1251.3,0.59229695]
[1760060439724,0.19437127,1251.4,1251.3,0.59229695]
[1760060439927,0.19437127,1251.4,1251.3,1.16418505]
[1760060440125,0.19437127,1251.4,1251.3,0.5718881]
[1760060441030,1.9701422,1255.7,1251.3,0.5718881]
[1760060441231,1.9701422,1255.7,1251.2,0.59031543]
[1760060441232,1.9701422,1255.7,1251.4,0.5718881]
[1760060441431,1.9701422,1255.5,1251.5,0.5718881]
[1760060441631,1.9701422,1255.5,1251.6,0.5718881]
[1760060441929,2.7581992,1256.0,1251.7,0.5718881]
[1760060442128,2.7581992,1256.0,1251.8,0.57127426]
[1760060442328,0.13872196,1256.1,1251.1,0.59031543]
[1760060442630,0.13872196,1256.1,1251.2,0.57133047]
[1760060442830,0.13872196,1256.1,1251.3,0.57133047]
[1760060443028,0.13872196,1256.1,1251.4,0.57133047]
[1760060443232,0.13872196,1256.1,1251.5,0.57133047]
[1760060443432,2.7581992,1255.7,1251.6,0.57133047]
[1760060443728,1.9701422,1255.3,1251.7,0.57133047]
[1760060443934,1.9701422,1255.3,1251.3,0.59031543]
[1760060444129,1.9701422,1255.3,1251.4,0.57114885]
[1760060444334,1.9701422,1255.3,1251.5,0.57114885]
[1760060444530,1.9701422,1255.4,1251.6,0.57114885]
[1760060444732,1.9701422,1255.4,1251.2,0.59031543]
[1760060444935,1.9701422,1255.4,1251.3,0.57101231]
[1760060445132,1.9701422,1255.3,1251.4,0.57101231]
[1760060445336,1.9701422,1255.3,1251.5,0.57101231]
[1760060445536,1.9701422,1255.3,1251.6,0.57101231]
[1760060445736,1.9701422,1255.3,1251.2,0.59031543]
[1760060445936,1.9701422,1255.3,1251.3,0.57089174]
[1760060446132,1.9701422,1255.3,1251.4,0.57089174]
[1760060446437,1.9701422,1255.3,1250.8,0.59031543]
[1760060446732,0.19393946,1251.0,1250.9,1.16129917]
[1760060446936,0.19393946,1251.0,1250.9,0.57098374]
[1760060447336,1.9701422,1256.0,1250.9,0.57098374]
[1760060447531,1.9701422,1256.0,1251.0,0.57098374]
[1760060447733,1.9701422,1255.9,1251.1,0.57098374]
[1760060448035,1.9701422,1255.9,1251.2,0.57098374]
[1760060448234,1.9701422,1255.9,1251.3,0.57098374]
[1760060448535,1.9701422,1255.9,1250.7,0.59031543]
[1760060448735,0.19391986,1250.8,1250.7,0.59031543]
[1760060448933,0.19391986,1250.8,1250.7,1.15802399]
[1760060449432,0.19391986,1250.8,1250.7,0.56770856]
[1760060450032,0.19391986,1250.8,1250.7,1.35743783]
[1760060450333,0.38783889,1250.8,1250.7,0.56770856]
[1760060450838,0.19391986,1250.8,1250.7,0.56770856]
[1760060453634,0.19391986,1250.8,1250.7,0.76355027]
[1760060453834,0.19391986,1250.8,1250.7,1.55327954]
[1760060454036,0.19391986,1250.8,1250.7,1.35743783]
[1760060454239,0.19391986,1250.8,1250.7,0.56770856]
[1760060454638,0.19391986,1250.8,1250.7,1.74275455]
[1760060455735,0.19391986,1250.8,1250.7,1.15694173]
[1760060455938,0.38778465,1250.8,1250.7,1.15694173]
[1760060457044,0.19391986,1250.8,1250.7,1.15694173]
[1760060457238,0.38771781,1250.8,1250.7,1.15694173]
[1760060457842,0.19391986,1250.8,1250.7,1.15694173]
[1760060458038,0.38776024,1250.8,1250.7,1.15694173]
[1760060459246,0.38776024,1250.8,1250.7,0.56770856]
[1760060459446,0.19391986,1250.8,1250.7,0.56770856]
[1760060459842,0.38776574,1250.8,1250.7,0.56770856]
[1760060460743,0.38776574,1250.8,1250.7,1.74275455]
[1760060461342,0.38776574,1250.8,1250.7,0.56770856]
[1760060462048,0.38776574,1250.8,1250.7,1.74575516]
[1760060462447,0.38776574,1250.8,1250.7,0.56770856]
[1760060471455,0.38776574,1250.8,1250.7,1.74937076]
[1760060471949,0.38776574,1250.8,1250.7,0.56770856]
[1760060472153,0.38776574,1250.8,1250.7,1.74983726]
[1760060472849,0.38776574,1250.8,1250.7,0.56770856]
[1760060473267,0.38776574,1250.8,1250.7,1.75028216]
[1760060475152,0.38776574,1250.8,1250.7,0.76498944]
[1760060475354,0.38776574,1250.8,1250.7,0.56770856]
[1760060475853,0.58258857,1250.8,1250.7,0.56770856]
[1760060476064,0.38776574,1250.8,1250.7,0.56770856]
[1760060476764,0.58266198,1250.8,1250.7,0.56770856]
[1760060476962,0.38776574,1250.8,1250.7,0.56770856]
[1760060480367,0.38776574,1250.8,1250.7,1.16063335]
[1760060482968,0.38776574,1250.8,1250.7,0.56770856]
[1760060483668,0.58297737,1250.8,1250.7,1.3579177]
[1760060483871,0.38776574,1250.8,1250.7,0.56770856]
[1760060484171,0.38776574,1250.8,1250.7,1.75028216]
[1760060484370,0.58304126,1250.8,1250.7,1.75028216]
[1760060484572,0.38776574,1250.8,1250.7,0.56770856]
[1760060485271,0.38776574,1250.8,1250.7,1.161207]
[1760060487474,0.38776574,1250.8,1250.7,0.56770856]
[1760060488276,0.38776574,1250.8,1250.7,1.16148431]
[1760060488871,0.38776574,1250.8,1250.7,0.56770856]
[1760060489276,0.38776574,1250.8,1250.7,1.16166219]
[1760060489474,0.38776574,1250.8,1250.7,0.56770856]
[1760060490772,0.38776574,1250.8,1250.7,1.16175188]
[1760060496976,0.38776574,1250.8,1250.7,0.56770856]
[1760060497879,0.38776574,1250.8,1250.7,1.16278109]
[1760060498276,0.38776574,1250.8,1250.7,0.56770856]
[1760060512092,0.38776574,1250.8,1250.7,1.16278109]
[1760060512290,0.38776574,1250.8,1250.7,0.56770856]
[1760060513792,0.38776574,1250.8,1250.5,0.79108749]
[1760060513990,0.38776574,1250.8,1250.6,0.57278149]
[1760060514190,0.38776574,1250.8,1250.7,0.57278149]
[1760060519292,0.58370607,1250.8,1250.7,1.75535509]
[1760060519496,0.58370607,1250.8,1250.7,0.57278149]
[1760060519993,0.77967037,1250.8,1250.7,1.36626692]
[1760060520291,0.77969023,1250.8,1250.7,0.57278149]
[1760060520595,0.58370607,1250.8,1250.7,0.57278149]
[1760060521096,0.58370607,1250.8,1250.7,1.16804209]
[1760060525296,0.58370607,1250.8,1250.7,0.57278149]
[1760060531302,0.58370607,1250.8,1250.7,1.16804209]
[1760060533605,0.58370607,1250.8,1250.7,0.57278149]
[1760060534302,0.58370607,1250.8,1250.7,1.36626692]
[1760060534602,0.58370607,1250.8,1250.7,0.57278149]
[1760060534808,0.78064608,1250.8,1250.7,0.57278149]
[1760060535005,0.78064608,1250.8,1250.7,1.75535509]
[1760060535006,0.58370607,1250.8,1250.7,1.75535509]
[1760060535205,0.58370607,1250.8,1250.7,0.57278149]
[1760060535402,0.78069361,1250.8,1250.7,0.57278149]
[1760060535601,0.58370607,1250.8,1250.7,0.57278149]
[1760060536102,0.78069438,1250.8,1250.7,0.57278149]
[1760060536301,0.58370607,1250.8,1250.7,0.57278149]
[1760060536506,0.78068522,1250.8,1250.7,0.57278149]
[1760060536706,0.78068522,1250.8,1250.7,1.76848169]
[1760060536906,0.78068522,1250.8,1250.7,1.96576257]
[1760060539705,0.78068522,1250.8,1250.7,0.77006237]
[1760060540005,0.78068522,1250.8,1250.7,0.57278149]
[1760060566225,0.78068522,1250.8,1250.7,1.7583707]
[1760060567126,0.78068522,1250.8,1250.7,0.57278149]
[1760060570328,0.78068522,1250.8,1250.7,1.75900259]
[1760060570732,0.78068522,1250.8,1250.7,0.57278149]
[1760060573534,0.78068522,1250.8,1250.7,2.53832869]
[1760060575531,0.78068522,1250.8,1250.7,0.57278149]
[1760060578038,0.78068522,1250.8,1250.7,2.54764771]
[1760060580236,0.78068522,1250.8,1250.7,0.57278149]
[1760060587247,0.58683934,1250.8,1250.7,0.57278149]
[1760060592946,0.58683934,1250.8,1250.7,1.76083912]
[1760060594750,0.58683934,1250.8,1250.7,0.57278149]
[1760060610863,0.40075712,1250.8,1250.7,0.57278149]
[1760060633075,0.36287474,1250.9,1250.7,0.57278149]
[1760060633277,0.36287474,1250.9,1250.8,0.57278149]
[1760060642385,0.36287474,1250.9,1250.8,3.34695439]
[1760060643282,0.36287474,1250.9,1250.8,0.57278149]
[1760060644884,0.36287474,1250.9,1250.8,2.55395673]
[1760060645989,0.36287474,1250.9,1250.8,0.57278149]
[1760060646183,0.36287474,1250.9,1250.8,2.55390369]
[1760060651289,0.36287474,1250.9,1250.8,0.57278149]
[1760060654591,0.36287474,1250.9,1250.8,3.34881326]
[1760060655194,0.36287474,1250.9,1250.8,2.77603177]
[1760060655494,0.36287474,1250.9,1248.7,0.13909957]
[1760060656393,0.36287474,1250.9,1250.4,2.7772836]
[1760060656595,0.36287474,1250.9,1250.5,0.57662266]
[1760060656894,0.36287474,1250.9,1250.6,0.57662266]
[1760060657095,0.36287474,1250.9,1250.7,0.57662266]
[1760060657396,0.36287474,1250.9,1250.8,0.57662266]
[1760060657595,0.16588263,1250.9,1250.8,0.57662266]
[1760060674914,0.16588263,1250.9,1250.8,1.76582896]
[1760060680315,0.16588263,1250.9,1250.8,0.57662266]
[1760060683416,0.16588263,1250.9,1250.8,2.55945456]
[1760060683915,0.16588263,1250.9,1250.8,0.57662266]
[1760060695123,0.16588263,1250.9,1250.8,2.55714526]
[1760060696227,0.16588263,1250.9,1250.8,0.57662266]
[1760060702027,0.11630672,1250.9,1250.8,0.57662266]
[1760060702525,0.11630672,1250.9,1250.4,3.967548]
[1760060702728,0.11630672,1250.9,1250.5,0.57582901]
[1760060703027,0.11630672,1250.9,1250.6,0.57582901]
[1760060703233,0.11630672,1250.9,1250.7,0.57582901]
[1760060703427,0.11630672,1250.9,1250.8,0.57582901]
[1760060705930,0.11630672,1250.9,1250.8,2.55958941]
[1760060706434,0.11630672,1250.9,1250.8,0.57582901]
[1760060715346,0.11630672,1250.9,1250.8,2.55958941]
[1760060716446,0.11630672,1250.9,1250.8,0.57582901]
[1760060736860,0.11630672,1250.9,1250.8,1.76668547]
[1760060737757,0.11630672,1250.9,1250.8,0.57582901]
[1760060740260,0.11630672,1250.9,1250.8,0.57713567]
[1760060742860,0.11630672,1250.9,1250.8,2.56105377]
[1760060743362,0.11630672,1250.9,1250.8,0.57713567]
[1760060760476,0.11630672,1250.9,1250.8,2.56105377]
[1760060765279,0.11630672,1250.9,1250.8,0.57713567]
[1760060775086,0.11630672,1250.9,1250.8,2.56105377]
[1760060776194,0.11630672,1250.9,1250.8,0.57713567]
[1760060779801,0.11630672,1250.9,1250.8,1.77085007]
[1760060779802,0.31294519,1250.9,1250.8,1.77085007]
[1760060779996,0.11630672,1250.9,1250.8,1.77085007]
[1760060780703,0.3128156,1250.9,1250.8,1.77085007]
[1760060780902,0.3128156,1250.9,1250.8,0.57713567]
[1760060788209,0.3128156,1250.9,1250.8,1.96629296]
[1760060789811,0.3128156,1250.9,1250.8,1.56909034]
[1760060790410,0.3128156,1250.9,1250.8,0.77555386]
[1760060790809,0.3128156,1250.9,1250.8,1.56909034]
[1760060791111,0.3128156,1250.9,1250.8,0.77555386]
[1760060791511,0.3128156,1250.9,1250.8,0.57713567]
[1760060802520,0.3128156,1250.9,1250.8,1.76765497]
[1760060802818,0.3128156,1250.9,1250.8,0.57713567]
[1760060809325,0.3128156,1250.9,1250.8,1.76785557]
[1760060809822,0.3128156,1250.9,1250.8,0.57713567]
[1760060810021,0.3128156,1250.9,1250.8,1.76793487]
[1760060813023,0.3128156,1250.9,1250.8,0.57713567]
[1760060814729,0.3128156,1250.9,1250.8,0.77561284]
[1760060815729,0.3128156,1250.9,1250.8,1.56951526]
[1760060815930,0.3128156,1250.9,1250.8,0.57713567]
[1760060816126,0.5087329,1250.9,1250.8,0.57713567]
[1760060816330,0.3128156,1250.9,1250.8,0.57713567]
[1760060816528,0.50873286,1250.9,1250.8,0.57713567]
[1760060816728,0.3128156,1250.9,1250.8,0.57713567]
[1760060818031,0.50870004,1250.9,1250.8,0.57713567]
[1760060826337,0.3128156,1250.9,1250.8,0.57713567]
[1760060829138,0.3128156,1250.9,1250.8,0.57748996]
[1760060831340,0.3128156,1250.9,1250.8,1.17294062]
[1760060834851,0.3128156,1250.9,1250.5,0.99237959]
[1760060835051,0.19597652,1250.8,1250.6,0.57801367]
[1760060835353,0.19597652,1250.8,1250.7,0.57801367]
[1760060836649,0.3128156,1250.9,1250.7,1.17401319]
[1760060836853,0.3128156,1250.9,1250.8,0.57801367]
[1760060840956,0.3128156,1250.9,1250.8,1.17401319]
[1760060841156,0.3128156,1250.9,1250.8,0.57801367]
[1760060841356,0.3128156,1250.9,1250.8,1.37191609]
[1760060842558,0.3128156,1250.9,1250.8,1.37188098]
[1760060843958,0.50878905,1250.9,1250.8,1.37188098]
[1760060844260,0.50879034,1250.9,1250.8,1.37188098]
[1760060844455,0.3128156,1250.9,1250.8,1.37188098]
[1760060844861,0.50879469,1250.9,1250.8,1.37188098]
[1760060845058,0.3128156,1250.9,1250.8,1.37188098]
[1760060845261,0.50879183,1250.9,1250.8,1.37188098]
[1760060845458,0.3128156,1250.9,1250.8,1.37188098]
[1760060845656,0.3128156,1250.9,1250.8,0.57797856]
[1760060845858,0.50879183,1250.9,1250.8,0.57797856]
[1760060846058,0.3128156,1250.9,1250.8,0.57797856]
[1760060846762,0.50878905,1250.9,1250.8,0.57797856]
[1760060846962,0.3128156,1250.9,1250.8,0.57797856]
[1760060847362,0.50880626,1250.9,1250.8,0.57797856]
[1760060847561,0.3128156,1250.9,1250.8,0.57797856]
[1760060847957,0.50880626,1250.9,1250.8,0.57797856]
[1760060848261,0.3128156,1250.9,1250.8,0.57797856]
[1760060848661,0.50879529,1250.9,1250.8,0.57797856]
[1760060848861,0.3128156,1250.9,1250.8,0.57797856]
[1760060849262,0.50879944,1250.9,1250.8,0.57797856]
[1760060849461,0.3128156,1250.9,1250.8,0.57797856]
[1760060849664,0.3128156,1250.9,1250.8,1.76877776]
[1760060849865,0.3128156,1250.9,1250.8,0.57797856]
[1760060850367,0.3128156,1250.9,1250.8,1.37192356]
[1760060855970,0.3128156,1250.9,1250.8,0.57797856]
[1760060865472,0.3128156,1250.9,1250.7,1.1907992]
[1760060865768,0.3128156,1250.9,1250.8,0.57899041]
[1760060867570,0.3128156,1250.9,1250.8,1.37491114]
[1760060867774,0.50901845,1250.9,1250.8,1.37491114]
[1760060867971,0.3128156,1250.9,1250.8,1.37491114]
[1760060869372,0.50907743,1250.9,1250.8,0.57899041]
[1760060869673,0.50907307,1250.9,1250.8,0.57899041]
[1760060869871,0.3128156,1250.9,1250.8,0.57899041]
[1760060870275,0.5090957,1250.9,1250.8,0.57899041]
[1760060870473,0.3128156,1250.9,1250.8,0.57899041]
[1760060870876,0.50909553,1250.9,1250.8,0.57899041]
[1760060871073,0.3128156,1250.9,1250.8,0.57899041]
[1760060871773,0.50911944,1250.9,1250.8,0.57899041]
[1760060871976,0.3128156,1250.9,1250.8,0.57899041]
[1760060872779,0.50913314,1250.9,1250.8,0.57899041]
[1760060872974,0.3128156,1250.9,1250.8,0.57899041]
[1760060873177,0.50914116,1250.9,1250.8,0.58004391]
[1760060873477,0.50914664,1250.9,1250.8,0.58004391]
[1760060873676,0.3128156,1250.9,1250.8,0.58004391]
[1760060873873,0.50914227,1250.9,1250.7,1.38977938]
[1760060874076,0.3128156,1250.9,1250.8,0.58007982]
[1760060881180,0.3128156,1250.9,1250.7,1.1907992]
[1760060881378,0.3128156,1250.9,1250.8,1.37678695]
[1760060881582,0.3128156,1250.9,1250.8,0.58016025]
[1760060883484,0.3128156,1250.9,1250.8,1.17749481]